bitfinex-derivatives/quotes_SOLF0:USTF0_20260116
["timestamp","ask_amount","ask_price","bid_price","bid_amount"]
[1768526023587,3.08774539,142.14,142.09,3.30071327]
[1768526025889,9.42024539,142.16,142.09,3.30071327]
[1768526026089,5.94066264,142.15,142.09,3.30071327]
[1768526026386,5.94066264,142.14,142.09,3.30071327]
[1768526026589,9.42024539,142.16,142.09,3.30071327]
[1768526026787,9.02857045,142.15,142.09,3.30071327]
[1768526026988,5.94082506,142.14,142.09,3.30071327]
[1768526027189,3.08774539,142.15,142.09,3.30071327]
[1768526027392,5.94106275,142.14,142.09,3.30071327]
[1768526027593,3.08774539,142.15,142.09,3.30071327]
[1768526027893,5.94106275,142.14,142.09,3.30071327]
[1768526028093,3.08774539,142.15,142.09,3.30071327]
[1768526028289,5.94106275,142.14,142.09,9.63611327]
[1768526028591,3.08774539,142.15,142.09,9.63611327]
[1768526028791,5.94164999,142.14,142.09,9.63611327]
[1768526029090,3.08774539,142.15,142.09,9.63611327]
[1768526029283,3.08774539,142.15,142.05,98.5764]
[1768526029284,5.94053448,142.14,142.1,9.55084706]
[1768526029484,3.08774539,142.15,142.1,9.55084706]
[1768526029688,5.9408032,142.14,142.1,9.55084706]
[1768526029889,3.08774539,142.15,142.1,9.55084706]
[1768526033095,3.08774539,142.15,142.09,3.18414815]
[1768526034894,9.42064539,142.15,142.09,3.18414815]
[1768526035798,3.08774539,142.15,142.09,3.18414815]
[1768526036496,6.64844636,142.17,142.1,3.18414815]
[1768526036698,5.63577512,142.16,142.1,3.18414815]
[1768526036899,3.17826371,142.17,142.1,3.18414815]
[1768526037094,3.17826371,142.15,142.1,3.18414815]
[1768526042203,3.17826371,142.17,142.1,3.18414815]
[1768526042501,5.64194634,142.16,142.11,3.18414815]
[1768526042704,3.17826371,142.17,142.11,3.18414815]
[1768526042898,5.64192645,142.16,142.11,3.18414815]
[1768526043205,8.82041941,142.15,142.08,9.51984815]
[1768526043405,3.17826371,142.15,142.09,3.18414815]
[1768526044204,5.6440383,142.14,142.09,3.18414815]
[1768526044406,3.17826371,142.15,142.09,3.18414815]
[1768526044602,5.64432217,142.14,142.09,3.18414815]
[1768526044807,3.17826371,142.15,142.09,3.18414815]
[1768526047211,5.64791289,142.14,142.09,3.18414815]
[1768526047504,8.82555742,142.13,142.08,6.3357]
[1768526047706,8.82555742,142.13,142.08,9.51984815]
[1768526047707,3.17826371,142.13,142.08,9.51984815]
[1768526049204,3.17826371,142.13,142.07,3.18414815]
[1768526049404,5.64850065,142.12,142.07,3.18414815]
[1768526049616,3.17826371,142.13,142.07,3.18414815]
[1768526049814,5.64846741,142.12,142.07,3.18414815]
[1768526050113,3.17826371,142.13,142.07,3.18414815]
[1768526050316,5.64879263,142.12,142.07,3.18414815]
[1768526050516,3.17826371,142.13,142.07,3.18414815]
[1768526050708,5.64880272,142.12,142.07,3.18414815]
[1768526050908,3.17826371,142.13,142.07,3.18414815]
[1768526051109,5.64880272,142.12,142.07,3.18414815]
[1768526051412,3.17826371,142.13,142.07,3.18414815]
[1768526051612,5.64864277,142.12,142.07,3.18414815]
[1768526051814,3.17826371,142.13,142.07,3.18414815]
[1768526052008,5.64864277,142.12,142.07,3.18414815]
[1768526052210,3.17826371,142.13,142.07,3.18414815]
[1768526052404,5.6482168,142.12,142.07,3.18414815]
[1768526052608,3.17826371,142.13,142.07,3.18414815]
[1768526052807,5.6482168,142.12,142.07,3.18414815]
[1768526053105,3.17826371,142.13,142.07,9.52044815]
[1768526053303,5.64780699,142.12,142.07,9.52044815]
[1768526053514,3.17826371,142.13,142.07,9.52044815]
[1768526053710,5.64780699,142.12,142.07,9.52044815]
[1768526053912,3.17826371,142.13,142.07,9.52044815]
[1768526054110,5.6478055,142.12,142.07,9.52044815]
[1768526054312,3.17826371,142.13,142.08,3.18414815]
[1768526054518,5.64743724,142.12,142.08,3.18414815]
[1768526054816,3.17826371,142.13,142.08,3.18414815]
[1768526055016,5.64742151,142.12,142.08,3.18414815]
[1768526055318,3.17826371,142.13,142.08,3.18414815]
[1768526055614,5.64709409,142.12,142.08,3.18414815]
[1768526055811,3.17826371,142.13,142.08,3.18414815]
[1768526056120,5.64709558,142.12,142.08,3.18414815]
[1768526056312,3.17826371,142.13,142.08,3.18414815]
[1768526056620,5.64680831,142.12,142.08,3.18414815]
[1768526056916,3.17826371,142.13,142.08,3.18414815]
[1768526057117,5.64678665,142.12,142.08,3.18414815]
[1768526057316,3.17826371,142.13,142.08,3.18414815]
[1768526057525,5.64651883,142.12,142.08,3.18414815]
[1768526057816,3.17826371,142.13,142.08,3.18414815]
[1768526058016,5.64651883,142.12,142.08,3.18414815]
[1768526058225,3.17826371,142.13,142.08,3.18414815]
[1768526058522,5.64628592,142.12,142.08,3.18414815]
[1768526058723,3.17826371,142.13,142.08,3.18414815]
[1768526058908,5.64628592,142.12,142.08,3.18414815]
[1768526059109,3.17826371,142.13,142.08,3.18414815]
[1768526059321,5.6460865,142.12,142.08,3.18414815]
[1768526059508,3.17826371,142.13,142.08,3.18414815]
[1768526095540,5.52335292,142.12,142.08,3.18414815]
[1768526095741,3.17826371,142.13,142.08,3.18414815]
[1768526095942,5.52335292,142.12,142.08,3.18414815]
[1768526096133,3.17826371,142.13,142.08,3.18414815]
[1768526096334,3.17826371,142.13,142.08,9.52004815]
[1768526098344,5.52166829,142.12,142.08,9.52004815]
[1768526098543,3.17826371,142.13,142.08,3.18414815]
[1768526101741,9.51206371,142.13,142.06,3.119628]
[1768526101946,11.73202817,142.13,142.06,3.119628]
[1768526102643,5.52643601,142.12,142.06,3.119628]
[1768526102939,11.73202817,142.13,142.06,3.119628]
[1768526103145,5.52585997,142.12,142.06,3.119628]
[1768526103446,11.73202817,142.13,142.06,3.119628]
[1768526103646,5.52583005,142.12,142.06,3.119628]
[1768526103846,11.73202817,142.13,142.06,3.119628]
[1768526104048,8.7039002,142.12,142.06,3.119628]
[1768526104249,3.17808001,142.12,142.06,3.119628]
[1768526106947,5.39804447,142.14,142.06,3.119628]
[1768526107147,8.70111673,142.13,142.06,3.119628]
[1768526107446,5.52303672,142.12,142.06,3.119628]
[1768526107646,3.17808001,142.13,142.06,3.119628]
[1768526107846,5.5226174,142.12,142.06,3.119628]
[1768526108147,3.17808001,142.13,142.06,3.119628]
[1768526108346,5.52260229,142.12,142.06,3.119628]
[1768526108548,3.17808001,142.13,142.06,3.119628]
[1768526108743,5.52141258,142.12,142.06,3.119628]
[1768526108938,3.17808001,142.13,142.06,3.119628]
[1768526109137,5.52141253,142.12,142.06,3.119628]
[1768526109341,3.17808001,142.13,142.06,3.119628]
[1768526109541,5.52131789,142.12,142.06,3.119628]
[1768526109742,3.17808001,142.13,142.06,3.119628]
[1768526109942,5.52130608,142.12,142.06,3.119628]
[1768526110243,3.17808001,142.13,142.06,3.119628]
[1768526110540,5.52114661,142.12,142.06,3.119628]
[1768526110743,3.17808001,142.13,142.06,3.119628]
[1768526110943,5.52113814,142.12,142.06,3.119628]
[1768526111140,3.17808001,142.13,142.06,3.119628]
[1768526111353,5.52107391,142.12,142.06,3.119628]
[1768526111552,3.17808001,142.13,142.06,3.119628]
[1768526111752,5.52107949,142.12,142.06,3.119628]
[1768526111954,3.17808001,142.13,142.06,3.119628]
[1768526112154,5.52107949,142.12,142.06,3.119628]
[1768526112355,3.17808001,142.13,142.06,3.119628]
[1768526112550,5.52095447,142.12,142.06,3.119628]
[1768526112845,3.17808001,142.13,142.06,3.119628]
[1768526113050,5.52000128,142.12,142.06,3.119628]
[1768526113251,3.17808001,142.13,142.06,3.119628]
[1768526113451,5.51942214,142.12,142.06,3.119628]
[1768526113755,3.17808001,142.13,142.07,3.119628]
[1768526113963,5.51941689,142.12,142.07,3.119628]
[1768526114154,3.17808001,142.13,142.07,3.119628]
[1768526114451,5.51935124,142.12,142.07,3.119628]
[1768526114749,3.17808001,142.13,142.07,3.119628]
[1768526114951,5.51936533,142.12,142.07,3.119628]
[1768526115147,3.17808001,142.13,142.08,3.119628]
[1768526115459,3.17808001,142.17,142.08,3.119628]
[1768526115650,14.17969548,142.16,142.08,3.119628]
[1768526115857,5.519961,142.15,142.08,3.119628]
[1768526116055,3.17808001,142.16,142.08,3.119628]
[1768526116251,5.51995812,142.15,142.08,3.119628]
[1768526116446,3.17808001,142.16,142.08,3.119628]
[1768526116651,5.51890323,142.15,142.08,3.119628]
[1768526116953,3.17808001,142.16,142.09,9.454928]
[1768526117147,5.51887976,142.15,142.1,3.119628]
[1768526117346,3.17808001,142.16,142.1,3.119628]
[1768526117659,5.51791011,142.15,142.1,3.119628]
[1768526117860,3.17808001,142.16,142.1,3.119628]
[1768526118062,5.51791997,142.15,142.1,3.119628]
[1768526118258,3.17808001,142.16,142.1,3.119628]
[1768526118463,5.51708805,142.15,142.1,3.119628]
[1768526118659,12.99240105,142.14,142.02,3.119628]
[1768526118852,10.99240105,142.13,142.03,3.119628]
[1768526119057,5.51532592,142.12,142.03,3.119628]
[1768526119257,2.0,142.14,142.03,3.119628]
[1768526119458,5.51541008,142.13,142.03,3.119628]
[1768526119659,5.51541008,142.12,142.03,3.119628]
[1768526119866,8.3334,142.14,142.07,3.119628]
[1768526120066,6.3334,142.14,142.07,3.119628]
[1768526120675,9.51148001,142.14,142.07,3.119628]
[1768526123879,3.17808001,142.14,142.07,3.119628]
[1768526129778,3.17808001,142.14,142.07,9.455928]
[1768526131884,3.17808001,142.14,142.08,3.10444467]
[1768526132184,3.17808001,142.14,142.07,6.3363]
[1768526132576,3.17808001,142.14,142.07,9.44074467]
[1768526135590,3.17808001,142.14,142.08,3.10444467]
[1768526136585,9.51148001,142.14,142.08,3.10444467]
[1768526136791,3.24642729,142.13,142.08,3.10444467]
[1768526137982,6.71461089,142.15,142.08,3.10444467]
[1768526138182,5.40545055,142.14,142.08,3.10444467]
[1768526138383,3.24642729,142.14,142.08,3.10444467]
[1768526138785,3.24642729,142.14,142.08,9.44034467]
[1768526138991,3.24642729,142.14,142.08,3.10444467]
[1768526139386,3.24642729,142.16,142.08,3.10444467]
[1768526140989,3.24642729,142.16,142.1,6.3351]
[1768526142890,3.24642729,142.16,142.1,9.43954467]
[1768526147892,3.24642729,142.16,142.05,98.5783]
[1768526147893,3.24642729,142.15,142.08,9.44004467]
[1768526148092,3.24642729,142.15,142.08,6.3356]
[1768526148298,3.24642729,142.13,142.08,6.3356]
[1768526148691,3.4681836,142.13,142.06,9.44104467]
[1768526148890,3.24642729,142.12,142.06,9.44104467]
[1768526152707,3.24642729,142.12,142.06,3.10444467]
[1768526153800,3.1295388,142.11,142.06,3.10444467]
[1768526161112,3.1295388,142.14,142.07,3.22750876]
[1768526163309,5.39463794,142.13,142.07,3.22750876]
[1768526163610,3.1295388,142.13,142.07,3.22750876]
[1768526166316,3.1295388,142.13,142.06,6.3367]
[1768526166509,3.1295388,142.13,142.06,9.56420876]
[1768526167511,3.1295388,142.12,142.06,9.56420876]
[1768526168410,3.1295388,142.12,142.06,3.22750876]
[1768526168617,6.5977224,142.15,142.08,3.22750876]
[1768526169005,3.1295388,142.14,142.08,3.22750876]
[1768526169809,3.1295388,142.14,142.08,9.56330876]
[1768526180322,3.1295388,142.13,142.08,9.56330876]
[1768526183931,2.2195627,142.14,142.08,3.22750876]
[1768526184936,2.2195627,142.14,142.1,6.335]
[1768526187733,3.126859,142.15,142.1,6.335]
[1768526187938,3.35194057,142.19,142.11,3.16529879]
[1768526188138,5.57150327,142.19,142.11,3.16529879]
[1768526188335,5.57150327,142.19,142.14,6.3332]
[1768526191440,3.35194057,142.19,142.15,6.3328]
[1768526191637,3.35194057,142.21,142.15,3.16529879]
[1768526192142,5.57150327,142.21,142.15,3.16529879]
[1768526192540,3.35194057,142.21,142.15,3.16529879]
[1768526192736,5.57150327,142.21,142.15,3.16529879]
[1768526193044,5.57150327,142.21,142.16,6.3323]
[1768526193341,3.35194057,142.21,142.16,6.3323]
[1768526195546,3.35194057,142.22,142.17,6.3318]
[1768526195737,3.35194057,142.22,142.16,3.16529879]
[1768526196945,3.35194057,142.22,142.18,6.3314]
[1768526204951,3.35194057,142.22,142.17,3.16529879]
[1768526205646,3.35194057,142.22,142.17,9.49719879]
[1768526213356,3.35194057,142.22,142.16,6.3321]
[1768526214257,3.35194057,142.22,142.16,9.5767128]
[1768526216853,3.35194057,142.22,142.17,3.2446128]
[1768526217159,3.35194057,142.22,142.17,9.5765128]
[1768526217956,2.2195627,142.24,142.17,9.5765128]
[1768526218155,5.2833038,142.24,142.17,9.5765128]
[1768526219161,3.0637411,142.24,142.17,9.5765128]
[1768526219954,3.0637411,142.23,142.17,3.2446128]
[1768526221764,9.3931411,142.23,142.17,3.2446128]
[1768526226659,3.0637411,142.22,142.17,3.2446128]
[1768526228665,3.0637411,142.22,142.14,3.2446128]
[1768526229772,6.3303,142.21,142.15,3.2446128]
[1768526239178,9.3940411,142.21,142.15,3.2446128]
[1768526243485,3.20720949,142.19,142.08,3.07723686]
[1768526244786,9.53890949,142.18,142.11,9.41183686]
[1768526244986,9.53890949,142.18,142.12,3.07723686]
[1768526254901,3.20720949,142.18,142.12,3.07723686]
[1768526259297,3.29085405,142.21,142.14,3.31355614]
[1768526260001,3.46410307,142.25,142.1,102.00670307]
[1768526260002,3.29085405,142.23,142.16,3.31355614]
[1768526261802,3.29085405,142.23,142.16,9.64595614]
[1768526262002,3.29085405,142.23,142.17,3.31355614]
[1768526262198,3.46410307,142.27,142.14,3.31355614]
[1768526262199,3.29085405,142.22,142.14,3.31355614]
[1768526262502,3.29085405,142.22,142.15,9.64625614]
[1768526263804,9.62065405,142.22,142.15,9.64625614]
[1768526265604,3.29085405,142.22,142.16,3.31355614]
[1768526266101,3.29085405,142.22,142.17,3.31355614]
[1768526266305,9.61995405,142.24,142.17,3.31355614]
[1768526266608,3.29085405,142.24,142.17,3.31355614]
[1768526266905,3.29085405,142.24,142.18,9.64505614]
[1768526269202,3.29085405,142.26,142.2,3.31355614]
[1768526269810,3.29085405,142.26,142.2,9.64395614]
[1768526273816,3.09561464,142.25,142.18,9.65644559]
[1768526275712,3.09561464,142.25,142.19,3.32504559]
[1768526279422,3.09561464,142.25,142.19,9.65574559]
[1768526283923,3.09561464,142.25,142.2,3.32504559]
[1768526300931,3.09561464,142.25,142.2,9.65564559]
[1768526303834,5.32090877,142.24,142.18,3.12781989]
[1768526304437,3.10488566,142.24,142.19,3.12781989]
[1768526305030,3.10488566,142.24,142.19,9.45891989]
[1768526305634,3.10488566,142.23,142.17,6.3316]
[1768526305834,3.10488566,142.23,142.17,9.45941989]
[1768526306326,3.10488566,142.23,142.18,3.10937217]
[1768526306926,3.0593481,142.25,142.19,3.10937217]
[1768526317242,8.54442311,142.26,142.19,3.10937217]
[1768526317448,10.64057802,142.25,142.19,3.10937217]
[1768526317649,5.19219079,142.25,142.19,3.10937217]
[1768526318048,8.25153889,142.25,142.19,3.10937217]
[1768526318248,3.0593481,142.25,142.19,3.10937217]
[1768526321752,3.0593481,142.25,142.19,9.44037217]
[1768526321954,3.0593481,142.25,142.2,3.10937217]
[1768526322251,2.21602311,142.26,142.2,3.10937217]
[1768526322439,3.0593481,142.27,142.21,9.43947217]
[1768526322841,3.0593481,142.27,142.22,3.10937217]
[1768526326157,3.0593481,142.29,142.22,3.10937217]
[1768526327749,3.0593481,142.29,142.23,6.3292]
[1768526327949,3.0593481,142.29,142.23,9.43857217]
[1768526331949,5.27537121,142.29,142.23,9.43857217]
[1768526332150,3.1532965,142.28,142.23,9.43857217]
[1768526332753,3.1532965,142.28,142.21,9.55746776]
[1768526336159,3.1532965,142.28,142.22,6.3297]
[1768526336359,5.36931961,142.28,142.22,9.55736776]
[1768526347375,5.36931961,142.28,142.22,3.22766776]
[1768526347672,5.36931961,142.26,142.2,3.22766776]
[1768526352168,3.1532965,142.26,142.2,3.22766776]
[1768526366878,9.4812965,142.26,142.2,3.22766776]
[1768526373581,3.1532965,142.26,142.2,3.22766776]
[1768526374382,3.1532965,142.26,142.2,9.55826776]
[1768526374680,3.1532965,142.26,142.21,3.1022656]
[1768526374883,9.48434395,142.28,142.21,3.1022656]
[1768526375781,9.48434395,142.28,142.21,9.4323656]
[1768526376781,9.48434395,142.28,142.22,3.1022656]
[1768526378789,3.15684395,142.27,142.22,3.1022656]
[1768526379286,3.15684395,142.27,142.2,3.1022656]
[1768526379287,3.15684395,142.26,142.2,3.1022656]
[1768526380884,3.15684395,142.26,142.2,9.4328656]
[1768526382687,3.15684395,142.26,142.21,3.1022656]
[1768526382985,3.15684395,142.28,142.21,3.1022656]
[1768526383188,5.46158683,142.27,142.21,3.1022656]
[1768526383382,3.15684395,142.28,142.21,3.1022656]
[1768526383582,5.46185551,142.27,142.21,3.1022656]
[1768526383782,3.15684395,142.28,142.21,3.1022656]
[1768526383990,10.58964406,142.27,142.21,3.1022656]
[1768526384287,3.15684395,142.28,142.21,3.1022656]
[1768526384487,10.59090188,142.27,142.22,3.1022656]
[1768526384684,3.15684395,142.28,142.22,3.1022656]
[1768526385775,3.15684395,142.3,142.22,3.1022656]
[1768526385981,3.15684395,142.29,142.22,3.1022656]
[1768526386893,3.15684395,142.29,142.23,3.1022656]
[1768526401603,3.16497988,142.28,142.22,6.3294]
[1768526401804,3.16497988,142.28,142.22,9.49686289]
[1768526408408,3.16497988,142.27,142.2,9.49776289]
[1768526409910,9.49277988,142.27,142.2,9.49776289]
[1768526411007,9.49277988,142.27,142.21,3.16746289]
[1768526413311,11.70866397,142.27,142.21,3.16746289]
[1768526424814,3.19465345,142.26,142.21,3.16746289]
[1768526425116,3.19465345,142.26,142.2,6.3303]
[1768526425715,3.19465345,142.26,142.2,9.63572442]
[1768526440132,3.17310248,142.24,142.18,9.37146887]
[1768526443630,5.38898657,142.23,142.18,3.04036887]
[1768526444027,3.17310248,142.22,142.16,9.37236887]
[1768526445334,3.17310248,142.22,142.17,3.04036887]
[1768526446934,2.21588409,142.21,142.15,3.04036887]
[1768526447135,3.17310248,142.2,142.15,3.04036887]
[1768526447333,3.17310248,142.2,142.13,3.04036887]
[1768526447644,5.38898657,142.19,142.13,3.04036887]
[1768526448938,11.72018657,142.19,142.13,3.04036887]
[1768526449334,3.17310248,142.18,142.12,6.3338]
[1768526449642,2.21588409,142.17,142.11,3.04036887]
[1768526450044,5.38898657,142.17,142.11,3.04036887]
[1768526451343,3.17310248,142.17,142.12,3.26539218]
[1768526462370,3.12730471,142.16,142.11,6.3345]
[1768526465265,3.12730471,142.16,142.11,9.59989218]
[1768526465467,3.12730471,142.16,142.11,3.26539218]
[1768526465668,3.12730471,142.16,142.09,9.60069218]
[1768526466272,3.12730471,142.16,142.1,6.335]
[1768526467264,3.12730471,142.16,142.1,9.60039218]
[1768526468366,3.12730471,142.18,142.12,9.59939218]
[1768526479775,3.12730471,142.17,142.09,3.26539218]
[1768526480368,3.12730471,142.15,142.09,3.26539218]
[1768526480580,3.12730471,142.15,142.09,9.60089218]
[1768526481378,3.03740424,142.14,142.07,3.06773747]
[1768526481679,3.03740424,142.13,142.04,3.06773747]
[1768526482881,9.37140424,142.13,142.06,9.40433747]
[1768526483481,3.03740424,142.13,142.07,3.06773747]
[1768526489889,3.06693505,142.15,142.08,3.33502523]
[1768526490785,3.06693505,142.15,142.08,9.67092523]
[1768526492080,3.06693505,142.15,142.09,3.33502523]
[1768526492586,3.06693505,142.15,142.1,3.33502523]
[1768526510398,3.06693505,142.15,142.09,6.3354]
[1768526511593,3.06693505,142.15,142.08,3.33502523]
[1768526512799,3.22689574,142.14,142.08,3.33502523]
[1768526513499,3.22689574,142.14,142.08,9.67092523]
[1768526521505,3.22689574,142.14,142.08,3.33502523]
[1768526523204,9.56029574,142.14,142.08,3.33502523]
[1768526523400,3.22689574,142.13,142.08,3.33502523]
[1768526524907,9.56079574,142.13,142.08,3.33502523]
[1768526525108,3.22689574,142.12,142.06,3.33755002]
[1768526526810,6.3347,142.11,142.06,3.33755002]
[1768526537926,5.44762586,142.12,142.06,3.33755002]
[1768526539829,11.78182586,142.12,142.06,3.33755002]
[1768526540530,5.44762586,142.12,142.06,3.33755002]
[1768526540732,3.22689574,142.12,142.06,3.33755002]
[1768526543528,6.3336,142.14,142.03,2.22073012]
[1768526543529,11.63580573,142.14,142.07,3.04253803]
[1768526544120,3.08147561,142.13,142.07,3.04253803]
[1768526544326,3.08147561,142.12,142.07,3.04253803]
[1768526544927,3.08147561,142.12,142.05,6.337]
[1768526545132,3.08147561,142.11,142.05,3.04253803]
[1768526545630,3.08147561,142.11,142.06,3.04253803]
[1768526546725,6.3343,142.12,142.06,3.04253803]
[1768526547326,5.53808044,142.13,142.06,3.04253803]
[1768526547519,3.31735032,142.13,142.07,3.31361344]
[1768526548125,3.31735032,142.13,142.08,3.31361344]
[1768526549530,3.31735032,142.12,142.06,3.31361344]
[1768526556743,2.22073012,142.13,142.07,3.31361344]
[1768526557242,5.53808044,142.13,142.07,3.31361344]
[1768526564946,3.31735032,142.13,142.07,3.31361344]
[1768526569552,3.31735032,142.11,142.05,3.31361344]
[1768526575260,3.31735032,142.11,142.05,9.65081344]
[1768526579260,2.22073012,142.12,142.07,3.05403937]
[1768526579454,3.04439733,142.13,142.07,3.05403937]
[1768526579760,10.69511015,142.12,142.07,3.05403937]
[1768526579960,3.04439733,142.13,142.07,3.05403937]
[1768526580158,10.69458267,142.12,142.07,3.05403937]
[1768526580359,3.04439733,142.13,142.07,3.05403937]
[1768526580560,10.6949249,142.12,142.07,3.05403937]
[1768526580762,3.04439733,142.13,142.08,6.3359]
[1768526580963,10.69549309,142.12,142.07,3.05403937]
[1768526581260,3.04439733,142.13,142.07,3.05403937]
[1768526581465,10.69598836,142.12,142.07,3.05403937]
[1768526581659,3.04439733,142.13,142.07,3.05403937]
[1768526581960,9.37739733,142.15,142.09,3.05403937]
[1768526582166,3.04439733,142.15,142.09,3.05403937]
[1768526582662,3.04439733,142.15,142.1,9.38893937]
[1768526584980,3.04439733,142.15,142.1,3.05403937]
[1768526586577,5.26512745,142.15,142.08,9.38963937]
[1768526586874,3.04439733,142.14,142.09,3.05403937]
[1768526603982,3.04439733,142.14,142.09,3.05403937]
[1768526625105,9.37779733,142.14,142.09,3.05403937]
[1768526630807,5.2535737,142.13,142.09,3.05403937]
[1768526631006,9.37779733,142.14,142.09,3.05403937]
[1768526631199,5.2535737,142.13,142.09,3.05403937]
[1768526631399,9.37779733,142.14,142.09,3.05403937]
[1768526631606,5.25431039,142.13,142.09,3.05403937]
[1768526631809,9.37779733,142.14,142.09,3.05403937]
[1768526632109,5.25431039,142.13,142.09,3.05403937]
[1768526632309,9.37779733,142.14,142.09,3.05403937]
[1768526632605,5.25467735,142.13,142.09,3.05403937]
[1768526632804,9.37779733,142.14,142.09,3.05403937]
[1768526633004,5.25467735,142.13,142.09,3.05403937]
[1768526633307,9.37779733,142.14,142.09,3.05403937]
[1768526633504,8.5757859,142.13,142.07,9.65716245]
[1768526633707,3.32066975,142.13,142.07,9.65716245]
[1768526634099,3.32066975,142.2,142.11,3.32076245]
[1768526634317,10.70016127,142.19,142.11,3.32076245]
[1768526634506,5.25551462,142.18,142.11,3.32076245]
[1768526634802,3.32066975,142.22,142.15,3.32076245]
[1768526635797,3.32066975,142.22,142.16,3.32076245]
[1768526644111,3.32066975,142.24,142.16,9.65306245]
[1768526644317,3.32066975,142.24,142.17,3.32076245]
[1768526644520,3.46805141,142.26,142.17,3.32076245]
[1768526644521,3.32066975,142.26,142.17,3.32076245]
[1768526645814,3.32066975,142.26,142.18,3.32076245]
[1768526648216,3.32066975,142.25,142.18,3.32076245]
[1768526649217,9.64926975,142.25,142.18,3.32076245]
[1768526649410,3.32066975,142.24,142.18,3.32076245]
[1768526650518,3.32066975,142.23,142.16,9.65306245]
[1768526651424,3.32066975,142.23,142.17,3.32076245]
[1768526659225,3.32066975,142.23,142.16,6.3323]
[1768526659429,3.32066975,142.22,142.16,6.3323]
[1768526660133,3.32066975,142.22,142.16,9.65306245]
[1768526660825,3.32066975,142.22,142.16,3.32076245]
[1768526661234,9.65046975,142.22,142.16,3.32076245]
[1768526661533,3.18982463,142.21,142.16,3.32076245]
[1768526662936,9.52012463,142.21,142.16,3.32076245]
[1768526687453,3.18982463,142.21,142.16,3.32076245]
[1768526687658,11.79562222,142.23,142.16,3.32076245]
[1768526688753,11.79562222,142.23,142.16,9.65316245]
[1768526695461,11.79562222,142.23,142.17,3.10469479]
[1768526704362,3.15530518,142.22,142.17,3.10469479]
[1768526711463,6.3288,142.25,142.19,3.10469479]
[1768526711670,3.15530518,142.25,142.19,3.10469479]
[1768526714069,3.15530518,142.23,142.16,9.43679479]
[1768526716061,3.15530518,142.23,142.17,6.3319]
[1768526717071,3.15530518,142.23,142.17,9.43659479]
[1768526723067,9.48480518,142.23,142.15,9.6583494]
[1768526723274,3.26731988,142.22,142.15,9.6583494]
[1768526724673,3.26731988,142.21,142.15,9.6583494]
[1768526725383,3.26731988,142.22,142.16,9.6579494]
[1768526730585,9.65702757,142.24,142.17,3.27419574]
[1768526730885,10.50911579,142.23,142.17,3.27419574]
[1768526731087,3.32782757,142.23,142.17,3.27419574]
[1768526735792,3.32782757,142.22,142.17,3.27419574]
[1768526736485,6.3295,142.23,142.17,3.27419574]
[1768526736689,3.32782757,142.24,142.18,3.27419574]
[1768526737175,3.32782757,142.26,142.19,9.60519574]
[1768526737378,9.79155541,142.27,142.15,3.27419574]
[1768526737379,3.32782757,142.23,142.15,3.27419574]
[1768526738681,3.32782757,142.22,142.15,9.60689574]
[1768526739989,9.65772757,142.22,142.15,9.60689574]
[1768526740897,9.65772757,142.22,142.16,3.27419574]
[1768526751199,3.3173192,142.2,142.14,3.2925039]
[1768526752897,9.6480192,142.2,142.14,3.2925039]
[1768526753100,3.3173192,142.19,142.13,6.3335]
[1768526753894,3.3173192,142.18,142.13,3.2925039]
[1768526754098,3.3173192,142.18,142.11,9.6269039]
[1768526754593,9.6495192,142.17,142.11,3.2925039]
[1768526755496,3.3173192,142.16,142.11,3.2925039]
[1768526755696,3.3173192,142.15,142.09,9.6277039]
[1768526756699,3.3173192,142.15,142.1,3.2925039]
[1768526757608,3.3173192,142.19,142.11,3.2925039]
[1768526758807,3.3173192,142.19,142.13,3.2925039]
[1768526760402,3.3173192,142.21,142.14,3.2925039]
[1768526761805,3.3173192,142.21,142.14,9.6257039]
[1768526762611,3.3173192,142.21,142.15,3.2925039]
[1768526766513,3.3173192,142.23,142.16,3.2925039]
[1768526767813,9.6467192,142.23,142.16,3.2925039]
[1768526769711,3.3173192,142.23,142.16,9.6248039]
[1768526769913,3.3173192,142.23,142.17,3.2925039]
[1768526772108,3.3173192,142.23,142.18,3.2925039]
[1768526775309,3.3173192,142.23,142.16,3.2925039]
[1768526776816,3.3173192,142.23,142.16,9.6248039]
[1768526779225,3.3173192,142.23,142.17,3.2925039]
[1768526781417,5.53424949,142.23,142.17,3.2925039]
[1768526783622,3.2381509,142.22,142.17,3.2925039]
[1768526796131,3.2381509,142.22,142.15,3.34105491]
[1768526797935,3.34071926,142.21,142.15,9.67385491]
[1768526800538,3.34071926,142.21,142.16,9.67345491]
[1768526808553,6.3298,142.22,142.16,9.67345491]
[1768526809853,6.3298,142.22,142.17,3.34105491]
[1768526813053,9.40650732,142.22,142.17,3.34105491]
[1768526817255,11.62273761,142.24,142.18,3.24131708]
[1768526817457,9.40580732,142.24,142.18,3.24131708]
[1768526817653,3.07670732,142.24,142.18,3.24131708]
[1768526818749,3.07670732,142.24,142.18,9.57281708]
[1768526819354,3.07670732,142.24,142.19,3.24131708]
[1768526820554,11.62153761,142.27,142.2,3.24131708]